fUSD/lending_fUSD_20240123
["ID","MTS","AMOUNT","RATE_DAILY","PERIOD"]
[312552851,1705971032411,-1026.39824093,0.00021939,2]
[312552852,1705971032450,-1531.81486227,0.00021939,2]
[312552853,1705971032461,-298.82689054,0.00021939,2]
[312552854,1705971032474,-11366.68054822,0.00021939,2]
[312552855,1705971032484,-39863.6386,0.00021939,2]
[312552856,1705971032494,-1000.0,0.00021939,2]
[312552857,1705971032503,-61524.01521627,0.00021939,2]
[312552858,1705971032522,-1209.88229102,0.00021939,2]
[312552859,1705971032533,-4083.28649766,0.00021939,2]
[312552860,1705971032545,-1179.6499085,0.00021939,2]
[312552861,1705971032556,-5442.49390683,0.00021939,2]
[312552862,1705971032576,-823.70403487,0.00021939,2]
[312552863,1705971032588,-21277.31534485,0.00021939,2]
[312552864,1705971032597,-1699.5530523,0.00022068,2]
[312552865,1705971032607,-1699.55305231,0.00022068,2]
[312552866,1705971032617,-205.0,0.00023216,2]
[312552867,1705971032626,-202.08717836,0.00025,2]
[312552868,1705971032636,-499.99,0.00025259,2]
[312552869,1705971032646,-205.0,0.00025259,5]
[312552870,1705971032654,-288.93,0.00025547,2]
[312552871,1705971032664,-652.28582246,0.00025691,2]
[312552872,1705971032674,-416.44747172,0.00027,2]
[312552873,1705971032684,-2533.0,0.000272,2]
[312552874,1705971032695,-11626.0,0.000273,2]
[312552875,1705971032704,-205.0,0.00027303,8]
[312552876,1705971032714,-250.0,0.00027336,2]
[312552877,1705971032724,-250.0,0.00027394,2]
[312552878,1705971032733,-150.26,0.00027397,2]
[312552879,1705971032742,-718.01,0.00027406,2]
[312552880,1705971032752,-250.0,0.00027412,2]
[312552881,1705971032762,-2000.0,0.00027436,2]
[312552882,1705971032771,-562.14,0.00027502,2]
[312552883,1705971032780,-1707.92,0.00027567,2]
[312552884,1705971032790,-197.01,0.00027607,2]
[312552885,1705971032800,-166.82,0.00027718,2]
[312552886,1705971032809,-426.98,0.00027724,2]
[312552887,1705971032818,-158.25,0.00027742,2]
[312552888,1705971032828,-150.26,0.00027758,2]
[312552889,1705971032837,-288.93,0.00027811,2]
[312552890,1705971032846,-150.26,0.00028118,2]
[312552891,1705971032856,-718.01,0.0002842,2]
[312552893,1705971032865,-150.26,0.00028479,2]
[312552895,1705971032874,-150.26,0.00028839,2]
[312552897,1705971032883,-176.43,0.00029,2]
[312552899,1705971032892,-197.01,0.00029046,2]
[312552902,1705971032902,-562.14,0.00029146,2]
[312552903,1705971032911,-150.26,0.000292,2]
[312552904,1705971032920,-205.0,0.00029346,11]
[312552905,1705971032929,-218.59601645,0.000294,2]
[312552906,1705971032938,-218.59601643,0.000294,2]
[312552907,1705971032947,-218.59601643,0.000294,2]
[312552908,1705971032956,-218.59601643,0.000294,2]
[312552909,1705971032965,-218.59601643,0.000294,2]
[312552910,1705971032974,-218.59601643,0.000294,2]
[312552911,1705971032984,-218.59601643,0.000294,2]
[312552912,1705971032993,-218.59601643,0.000294,2]
[312552913,1705971033002,-218.59601643,0.000294,2]
[312552915,1705971033011,-218.59601643,0.000294,2]
[312552916,1705971033022,-718.01,0.00029434,2]
[312552917,1705971033031,-1811.20210573,0.000295,7]
[312552918,1705971033040,-652.28582246,0.00029542,4]
[312552919,1705971033052,-176.43,0.00029548,2]
[312552920,1705971033061,-150.26,0.0002956,2]
[312552921,1705971033070,-2710.0,0.000297,2]
[312552922,1705971033080,-832.87,0.00029793,2]
[312552923,1705971033090,-2000.0,0.000299,3]
[312552924,1705971033099,-227.85140362,0.000299,2]
[312552925,1705971033108,-154.65333926,0.000299,2]
[312552926,1705971033117,-150.26,0.00029921,2]
[312552927,1705971033127,-243.16930222,0.0002999,2]
[312552928,1705971033137,-1090.0,0.0003,5]
[312552929,1705971033146,-155.0,0.0003,2]
[312552930,1705971033155,-172356.71155469,0.0003,2]
[312552932,1705971038119,-204.0,0.00023216,2]
[312552933,1705971038129,-86.46799996,0.0003,5]
[312552934,1705971038141,-901.53200004,0.0003,5]
[312552935,1705971038151,-562.43992537,0.0003,2]
[312552936,1705971038266,-472.47,0.0003,2]
[312552937,1705971038278,-417.74338871,0.0003,2]
[312552938,1705971038291,-3923.54468742,0.0003,2]
[312552939,1705971038303,-525.06967636,0.0003,2]
[312552940,1705971038315,-873.08696613,0.0003,2]
[312552941,1705971038327,-6998.6,0.0003,2]
[312552942,1705971038354,-337.16451685,0.0003,2]
[312552943,1705971038367,-1042.0747437,0.0003,2]
[312552944,1705971038378,-4989.85373047,0.0003,2]
[312552945,1705971038392,-3011.3631176,0.0003,2]
[312552946,1705971038404,-4450.4087247,0.0003,2]
[312552947,1705971038415,-4912.170635,0.0003,2]
[312552948,1705971038427,-475082.47350779,0.0003,2]
[312552949,1705971038437,-57099.29253279,0.0003,2]
[312552950,1705971038447,-20439.36117638,0.0003,4]
[312552952,1705971038456,-150.0,0.0003,2]
[312552954,1705971038466,-288.93,0.00030074,2]
[312552956,1705971038476,-176.43,0.00030096,2]
[312552958,1705971038486,-218.59601643,0.00030192,2]
[312552960,1705971038495,-150.26,0.00030281,2]
[312552961,1705971038505,-158.25,0.00030351,2]
[312552962,1705971038515,-718.01,0.00030448,2]
[312552963,1705971038525,-150.26,0.00030642,2]
[312552965,1705971038534,-278.44503726,0.00030644,2]
[312552967,1705971038544,-562.14,0.00030789,2]
[312552969,1705971038553,-150.26,0.00031002,2]
[312552972,1705971038564,-218.59601643,0.00031037,2]
[312552973,1705971038573,-150.26,0.00031363,2]
[312552975,1705971038583,-205.0,0.0003139,14]
[312552978,1705971038593,-718.01,0.00031462,2]
[312552980,1705971038602,-227.85140355,0.00031618,3]
[312552982,1705971038611,-180.0,0.00031644,2]
[312552983,1705971038621,-150.26,0.00031723,2]
[312552984,1705971038635,-161.28,0.00031851,2]
[312552985,1705971038645,-218.59601643,0.00031883,2]
[312552986,1705971038654,-150.26,0.00032084,2]
[312552987,1705971038664,-288.93,0.00032338,2]
[312552988,1705971038675,-562.14,0.00032433,2]
[312552989,1705971038684,-150.26,0.00032444,2]
[312552990,1705971038694,-218.59601643,0.00032728,2]
[312552991,1705971038703,-150.26,0.00032805,2]
[312552992,1705971038713,-167.4,0.00032877,15]
[312552993,1705971038722,-158.25,0.00032961,2]
[312552994,1705971038732,-155.0,0.00033,4]
[312552995,1705971038742,-838.43476686,0.00033,2]
[312552996,1705971038751,-150.26,0.00033165,2]
[312552997,1705971038761,-227.85140355,0.00033336,5]
[312552998,1705971038770,-161.28,0.00033349,2]
[312552999,1705971038780,-652.28582246,0.00033394,6]
[312553000,1705971038789,-205.0,0.00033434,18]
[312553001,1705971038799,-832.87,0.00033518,2]
[312553002,1705971038809,-150.26,0.00033526,2]
[312553003,1705971038819,-218.59601643,0.00033573,2]
[312553004,1705971038828,-150.26,0.00033886,2]
[312553005,1705971038838,-506.61948755,0.00034,4]
[312553006,1705971038847,-500.0,0.00034,2]
[312553007,1705971038856,-1000.0,0.00034,4]
[312553008,1705971038866,-562.14,0.00034077,2]
[312553009,1705971038875,-150.26,0.00034247,2]
[312553010,1705971038884,-218.59601643,0.00034419,2]
[312553011,1705971038894,-150.0,0.00034548,10]
[312553012,1705971038903,-288.93,0.00034602,2]
[312553013,1705971038913,-161.28,0.00034847,2]
[312553014,1705971038923,-503.61346443,0.000349,2]
[312553015,1705971038933,-503.61346443,0.000349,2]
[312553016,1705971038942,-503.61346443,0.000349,2]
[312553017,1705971038951,-503.61346443,0.000349,2]
[312553018,1705971038960,-16537.13835919,0.00035,2]
[312553019,1705971038970,-227.85140355,0.00035055,7]
[312553020,1705971038979,-218.59601643,0.00035264,2]
[312553021,1705971038989,-1435.21100177,0.00035351,2]
[312553022,1705971038998,-205.0,0.00035477,21]
[312553023,1705971039007,-1435.21100177,0.00035697,2]
[312553024,1705971039017,-562.14,0.00035721,2]
[312553025,1705971039026,-285.51851062,0.000359,4]
[312553026,1705971039036,-1768.73893958,0.00035901,4]
[312553027,1705971039045,-1435.21100177,0.00035981,2]
[312553028,1705971039055,-170.0,0.00036,2]
[312553029,1705971039064,-218.59601643,0.00036109,2]
[312553030,1705971039074,-1435.21100177,0.00036278,2]
[312553031,1705971039083,-161.28,0.00036345,2]
[312553032,1705971039093,-167.4,0.00036613,15]
[312553033,1705971039102,-1435.21100177,0.00036639,2]
[312553034,1705971039112,-161.0123,0.00036748,8]
[312553035,1705971039122,-227.85140355,0.00036773,9]
[312553036,1705971039136,-288.93,0.00036866,2]
[312553037,1705971039146,-1435.21100177,0.00036913,2]
[312553038,1705971039156,-218.59601643,0.00036955,2]
[312553039,1705971039166,-503.61346443,0.00036968,2]
[312553040,1705971039175,-257.14,0.00037,30]
[312553041,1705971039185,-250.0,0.00037,2]
[312553042,1705971039194,-300.0,0.00037,2]
[312553043,1705971039204,-150.0,0.00037,2]
[312553044,1705971039214,-1435.21100177,0.00037047,2]
[312553045,1705971039224,-167.49880359,0.00037048,2]
[312553046,1705971039234,-257.14,0.00037137,30]
[312553047,1705971039243,-200000.0,0.00037145,15]
[312553048,1705971039253,-161.0123,0.00037148,10]
[312553049,1705971039262,-152.66418,0.00037224,2]
[312553050,1705971039272,-832.87,0.00037242,2]
[312553051,1705971039281,-652.28582246,0.00037245,8]
[312553052,1705971039291,-257.14,0.00037274,30]
[312553053,1705971039302,-250.0,0.00037274,2]
[312553054,1705971039311,-1435.21100177,0.00037294,2]
[312553055,1705971039321,-257.14,0.00037411,30]
[312553056,1705971039330,-151.0123,0.00037448,8]
[312553057,1705971039340,-205.0,0.00037521,24]
[312553058,1705971039350,-257.14,0.00037548,30]
[312553059,1705971039360,-500.0,0.00037548,2]
[312553060,1705971039370,-507.61,0.00037685,30]
[312553061,1705971039381,-1435.21100177,0.00037694,2]
[312553062,1705971039393,-152.02,0.000377,3]
[312553063,1705971039403,-152.02,0.000377,3]
[312553064,1705971039413,-152.02,0.000377,3]
[312553065,1705971039422,-152.02,0.000377,3]
[312553066,1705971039432,-152.02,0.000377,3]
[312553067,1705971039442,-152.02,0.000377,3]
[312553068,1705971039451,-152.02,0.000377,3]
[312553069,1705971039461,-152.02,0.000377,3]
[312553070,1705971039471,-152.02,0.000377,3]
[312553071,1705971039481,-152.02,0.000377,3]
[312553072,1705971039491,-152.02,0.000377,3]
[312553073,1705971039500,-152.02,0.000377,3]
[312553074,1705971039510,-152.02,0.000377,3]
[312553075,1705971039520,-152.02,0.000377,3]
[312553076,1705971039529,-152.02,0.000377,3]
[312553077,1705971039538,-152.02,0.000377,3]
[312553078,1705971039548,-152.02,0.000377,3]
[312553079,1705971039559,-152.02,0.000377,3]
[312553080,1705971039569,-151.0123,0.00037748,10]
[312553081,1705971039580,-9641.48777699,0.00037799,2]
[312553082,1705971039590,-169.22902365,0.000378,2]
[312553083,1705971039599,-218.59601643,0.000378,2]
[312553084,1705971039609,-309.20057785,0.00037807,2]
[312553085,1705971039618,-2000.0,0.00037808,2]
[312553086,1705971039628,-161.28,0.00037843,2]
[312553087,1705971039638,-243.16930222,0.00037888,2]
[312553088,1705971039651,-243.16930222,0.00037889,2]
[312553089,1705971039661,-500.0,0.00037897,2]
[312553090,1705971039671,-500.0,0.00037897,2]
[312553091,1705971039680,-500.0,0.00037897,2]
[312553092,1705971039690,-500.0,0.00037897,2]
[312553093,1705971039700,-500.0,0.00037897,2]
[312553094,1705971039709,-500.0,0.00037897,2]
[312553095,1705971039718,-500.0,0.00037897,2]
[312553096,1705971039728,-1251.32419028,0.00037897,4]
[312553097,1705971039737,-301.41783471,0.00037897,4]
[312553098,1705971039747,-167.93767743,0.00037897,4]
[312553099,1705971039757,-507.36267549,0.00037897,4]
[312553100,1705971039767,-199.17071904,0.00037897,4]
[312553101,1705971039777,-243.09346346,0.00037897,4]
[312553102,1705971039787,-242.1049107,0.00037897,4]
[312553103,1705971039797,-1131.61788344,0.00037897,4]
[312553104,1705971039808,-219.04810795,0.00037897,4]
[312553105,1705971039818,-155.82054156,0.00037897,4]
[312553106,1705971039828,-216.93251452,0.00037897,4]
[312553107,1705971039838,-213.25924755,0.00037897,4]
[312553108,1705971039848,-261.32819885,0.00037897,4]
[312553109,1705971039859,-242.92756214,0.00037897,4]
[312553110,1705971039871,-582.25525267,0.00037897,4]
[312553111,1705971039882,-8417.48878466,0.00037897,4]
[312553112,1705971039893,-494.78056701,0.00037897,4]
[312553113,1705971039906,-581.76600082,0.00037898,4]
[312553114,1705971039917,-2924.55644529,0.00037898,4]
[312553115,1705971039928,-4261.36537296,0.00037898,2]
[312553116,1705971039939,-155276.61597206,0.00037899,7]
[312553117,1705971039955,-658.55951807,0.00037899,7]
[312553118,1705971039967,-24731.29241075,0.00037899,7]
[312553119,1705971039980,-309.8372401,0.00037899,7]
[312553120,1705971039991,-1332.08172666,0.00037899,7]
[312553121,1705971040016,-34423.77959047,0.00037899,7]
[312553122,1705971040028,-56701.61543504,0.00037899,7]
[312553123,1705971040040,-107701.41485083,0.00037899,7]
[312553124,1705971040052,-992.91714019,0.00037899,7]
[312553125,1705971040068,-5264.58072365,0.00037899,7]
[312553126,1705971040079,-7045.82249122,0.00037899,7]
[312553127,1705971040107,-2191.9173424,0.00037899,7]
[312553128,1705971040118,-341.50155484,0.00037899,7]
[312553134,1705971041834,-2272.82837795,0.0003,6]
[312553135,1705971041843,-1702.90756737,0.0003,6]
[312553136,1705971041853,-1824.07807778,0.0003,6]
[312553137,1705971041862,-2200.1759769,0.000349,14]
[312553138,1705971041871,-14888.98907927,0.00037899,7]
[312553139,1705971041913,-1825.38208847,0.00037899,7]
[312553179,1705971043214,-888.0,0.0003,5]
[312553182,1705971043223,-2154.61271831,0.00037899,7]
[312553187,1705971043289,-619568.13904421,0.00037899,7]
[312553188,1705971043298,-485355.48917859,0.00037899,2]
[312553189,1705971043310,-39211.62345979,0.00037899,2]
[312553190,1705971043321,-966.67132344,0.00037899,2]
[312553191,1705971043343,-2077.17,0.00037899,2]
[312553193,1705971046208,-165.69106226,0.00021738,2]
[312553194,1705971046218,-177.9187459,0.00037899,2]
[312553195,1705971046231,-1111.36074728,0.00037899,2]
[312553196,1705971046286,-2746.1399994,0.00037899,2]
[312553197,1705971046303,-686.336,0.00037899,2]
[312553198,1705971046371,-443.99782992,0.00037899,2]
[312553199,1705971046386,-434.29593539,0.00037899,2]
[312553200,1705971046399,-2435.8477103,0.00037899,2]
[312553201,1705971046411,-4567.221464,0.00037899,2]
[312553202,1705971046426,-2236.06203459,0.00037899,2]
[312553203,1705971046438,-20745.58912208,0.00037899,2]
[312553204,1705971046450,-515.40000015,0.00037899,2]
[312553214,1705971252879,332.04627001,0.00021837,5]
[312553217,1705971266670,412.72696255,0.000229,6]
[312553222,1705971360615,227.76,0.00020025,2]
[312553231,1705971916597,2000.0,0.00020746,2]
[312553234,1705971971325,243.33,0.00018829,2]
[312553235,1705972025818,156.41,0.00020936,2]
[312553236,1705972095056,539.64,0.00020684,2]
[312553245,1705972150800,1000.0,0.00033,30]
[312553246,1705972173413,433.61,0.00020751,2]
[312553247,1705972209607,269.22,0.0002077,2]
[312553274,1705972232331,-285.61791287,0.00021092,2]
[312553275,1705972232341,-243.33,0.00021093,2]
[312553276,1705972232350,-166.82,0.00021229,2]
[312553278,1705972232359,-150.0,0.00021321,2]
[312553280,1705972232368,-4010.37676808,0.00021322,2]
[312553282,1705972232387,-457.83783673,0.00021322,2]
[312553283,1705972232499,-1885.15,0.00021322,2]
[312553284,1705972232511,-400.0,0.00021322,2]
[312553285,1705972232567,-6070.23638082,0.00021322,2]
[312553291,1705972232781,-418.418,0.00021322,2]
[312553294,1705972232794,-381.85725563,0.00021322,2]
[312553296,1705972232806,-55573.12375874,0.00021322,2]
[312553298,1705972232816,-164.33870276,0.00021438,2]
[312553299,1705972232825,-15858.66822736,0.00021438,2]
[312553300,1705972232835,-190.60665139,0.00021438,2]
[312553301,1705972232846,-169.88947442,0.00021527,2]
[312553302,1705972232855,-143239.85668877,0.00021537,2]
[312553317,1705972238363,2701.50000046,0.0002077,2]
[312553318,1705972238384,-1998.48701999,0.00021537,2]
[312553319,1705972238496,-158167.84425377,0.00021537,2]
[312553320,1705972238508,-747617.94217001,0.00021537,2]
[312553321,1705972238520,-4082.38781533,0.00021537,2]
[312553322,1705972238552,-2679.86796655,0.00021537,2]
[312553323,1705972238562,-633.6342,0.00021538,2]
[312553324,1705972238574,-76637.5967477,0.00021538,2]
[312553325,1705972238663,-442.9122,0.00021538,2]
[312553326,1705972238723,-353466.5675523,0.00021538,2]
[312553327,1705972238732,-3598.98,0.00021538,2]
[312553328,1705972238741,-778.6494,0.00021548,2]
[312553329,1705972238751,-1000.0,0.00021637,2]
[312553330,1705972238761,-170.73166754,0.00021638,2]
[312553331,1705972238773,-9110.458,0.00021638,2]
[312553333,1705972238782,-117715.1242,0.00021638,2]
[312553334,1705972238791,-180.52865793,0.00021639,2]
[312553335,1705972238800,-416.18,0.00021644,2]
[312553336,1705972238809,-164.3387027,0.00021682,2]
[312553337,1705972238820,-525.07174403,0.00021737,2]
[312553338,1705972238828,-499.99,0.00021738,2]
[312553339,1705972238837,-2658.2278,0.00021738,2]
[312553340,1705972238848,-4928.7792,0.00021738,2]
[312553341,1705972238857,-2500.0,0.00021738,2]
[312553342,1705972238867,-756.41,0.00021739,2]
[312553343,1705972238876,-1032.7859,0.00021739,2]
[312553344,1705972238886,-340.1112,0.00021739,2]
[312553345,1705972238895,-170.73166752,0.00021753,2]
[312553346,1705972238904,-169.88947442,0.00021829,2]
[312553347,1705972238913,-1995.96512012,0.00021836,2]
[312553348,1705972238922,-155.04297235,0.00021836,2]
[312553349,1705972238931,-242.58443095,0.00021836,2]
[312553350,1705972238941,-250.42352751,0.00021836,2]
[312553351,1705972238950,-3145.8449708,0.00021836,2]
[312553352,1705972238959,-2320.76864865,0.00021836,2]
[312553353,1705972238968,-1467.46749467,0.00021836,2]
[312553354,1705972238977,-2150.1249797,0.00021837,2]
[312553355,1705972238987,-301.41783471,0.00021838,2]
[312553356,1705972238996,-1000.0,0.00021839,2]
[312553357,1705972239005,-553.1567,0.00021839,2]
[312553358,1705972239014,-100000.0,0.00021839,2]
[312553359,1705972239023,-245000.0,0.00021839,2]
[312553360,1705972239032,-500.0,0.00021839,2]
[312553361,1705972239041,-170.73166752,0.00021867,2]
[312553362,1705972239050,-250.0,0.00021918,2]
[312553363,1705972239059,-164.3387027,0.00021925,2]
[312553364,1705972239068,-151.15,0.00021956,2]
[312553365,1705972239077,-170.73166752,0.00021982,2]
[312553366,1705972239086,-300.0,0.00021999,2]
[312553367,1705972239095,-150.0,0.00021999,2]
[312553368,1705972239104,-170.73166752,0.00022097,2]
[312553369,1705972239113,-164.3387027,0.00022169,2]
[312553370,1705972239122,-170.73166752,0.00022212,2]
[312553371,1705972239132,-170.73166752,0.00022326,2]
[312553372,1705972239140,-433.61,0.00022394,2]
[312553373,1705972239149,-164.3387027,0.00022413,2]
[312553374,1705972239158,-170.73166752,0.00022441,2]
[312553375,1705972239167,-416.18,0.00022445,2]
[312553376,1705972239176,-170.73166752,0.00022556,2]
[312553377,1705972239185,-164.3387027,0.00022656,2]
[312553378,1705972239194,-170.73166752,0.00022671,2]
[312553379,1705972239204,-170.73166752,0.00022785,2]
[312553380,1705972239213,-169.22902364,0.000229,2]
[312553381,1705972239222,-39863.6386,0.000229,2]
[312553382,1705972239231,-170.73166752,0.000229,2]
[312553383,1705972239240,-164.3387027,0.000229,2]
[312553384,1705972239249,-190.60665139,0.000229,2]
[312553385,1705972239258,-169.88947442,0.0002299,2]
[312553386,1705972239267,-155.0,0.00022998,2]
[312553387,1705972239276,-64271.0,0.00022998,2]
[312553388,1705972239285,-34077.57,0.00022999,2]
[312553389,1705972239294,-1496.74930404,0.00022999,2]
[312553390,1705972239303,-180.77871897,0.00022999,2]
[312553391,1705972239313,-150.0,0.00022999,2]
[312553392,1705972239323,-180.77871897,0.00022999,2]
[312553393,1705972239333,-150.0,0.00022999,2]
[312553394,1705972239342,-180.77871897,0.00022999,2]
[312553395,1705972239351,-150.0,0.00022999,2]
[312553396,1705972239359,-180.77871897,0.00022999,2]
[312553397,1705972239368,-150.0,0.00022999,2]
[312553398,1705972239377,-180.77871897,0.00022999,2]
[312553399,1705972239386,-150.0,0.00022999,2]
[312553400,1705972239395,-180.77871897,0.00022999,2]
[312553401,1705972239404,-150.0,0.00022999,2]
[312553402,1705972239413,-180.77871897,0.00022999,2]
[312553403,1705972239422,-150.0,0.00022999,2]
[312553404,1705972239431,-180.77871897,0.00022999,2]
[312553405,1705972239440,-150.0,0.00022999,2]
[312553406,1705972239450,-180.77871897,0.00022999,2]
[312553407,1705972239459,-150.0,0.00022999,2]
[312553408,1705972239468,-180.77871897,0.00022999,2]
[312553409,1705972239477,-150.0,0.00022999,2]
[312553410,1705972239486,-180.77871897,0.00022999,2]
[312553411,1705972239495,-150.0,0.00022999,2]
[312553412,1705972239505,-180.77871897,0.00022999,2]
[312553413,1705972239514,-150.0,0.00022999,2]
[312553414,1705972239523,-180.77871897,0.00022999,2]
[312553415,1705972239532,-150.0,0.00022999,2]
[312553416,1705972239541,-156.93550965,0.00023,2]
[312553417,1705972239550,-11077078.15142715,0.00023,2]
[312553418,1705972239579,-8850.90735063,0.00023,2]
[312553433,1705972240814,-3050.47326885,0.00023,2]
[312553434,1705972240827,-919.12877178,0.00023,2]
[312553435,1705972240838,-329.50885346,0.00023,2]
[312553436,1705972240851,-660.89413384,0.00023,2]
[312553437,1705972240863,-578.06080476,0.00023,2]
[312553438,1705972240878,-303.20240511,0.00023,2]
[312553439,1705972241552,-5776.71300195,0.00023,2]
[312553440,1705972241644,-732.43703779,0.00023,2]
[312553441,1705972241656,-491.27193551,0.00023,2]
[312553442,1705972241689,-1780.95270064,0.00023,2]
[312553443,1705972241700,-3499.38110643,0.00023,2]
[312553444,1705972241711,-3194.72761637,0.00023,2]
[312553473,1705972243349,-3800.89720378,0.00023,2]
[312553477,1705972243406,-4407.61889286,0.00023,2]
[312553478,1705972243418,-1378.79556387,0.00023,2]
[312553479,1705972243430,-2512.84309114,0.00023,2]
[312553480,1705972243441,-4214.98741883,0.00023,2]
[312553481,1705972243464,-1428740.24334849,0.00023,2]
[312553482,1705972243476,-89352.52728074,0.00023,2]
[312553483,1705972243487,-57621.2232751,0.00023,2]
[312553484,1705972243499,-13615.89204299,0.00023,2]
[312553485,1705972243511,-736.45,0.00023,2]
[312553486,1705972243524,-1028.736674,0.00023,2]
[312553487,1705972243535,-988.0,0.00023,2]
[312553488,1705972243557,-466.94497123,0.00023,2]
[312553489,1705972243569,-42079.69559321,0.00023,2]
[312553490,1705972243591,-858.87001919,0.00023,2]
[312553491,1705972243617,-2130.34773654,0.00023,2]
[312553492,1705972243628,-9398.90445393,0.00023,2]
[312553493,1705972243639,-325.39435214,0.00023,2]
[312553494,1705972243659,-514.60213491,0.00023,2]
[312553497,1705972246426,-285.61791287,0.00022999,2]
[312553498,1705972246435,-149.38208713,0.00023,2]
[312553499,1705972246447,-2505.12168228,0.00023,2]
[312553500,1705972246461,-859.39536,0.00023,2]
[312553501,1705972246473,-10071.47825366,0.00023,2]
[312553502,1705972246490,-479.96318635,0.00023,2]
[312553503,1705972246503,-550.59407178,0.00023,2]
[312553504,1705972246516,-479.80109008,0.00023,2]
[312553505,1705972246528,-4639.4,0.00023,2]
[312553506,1705972246540,-7778.86563415,0.00023,2]
[312553507,1705972246555,-587.38611229,0.00023,2]
[312553508,1705972246598,-283.7162531,0.00023,2]
[312553509,1705972246616,-619.76020313,0.00023,2]
[312553510,1705972246629,-658.85282172,0.00023,2]
[312553511,1705972246641,-736.48501665,0.00023,2]
[312553512,1705972246652,-2152.0682057,0.00023,2]
[312553513,1705972246664,-280.21103288,0.00023,2]
[312553516,1705972247191,-543182.34241492,0.00023,2]
[312553517,1705972247244,-633.90125651,0.00023,2]
[312553518,1705972247255,-457.57599352,0.00023,2]
[312553519,1705972247271,-9246.36664746,0.00023,2]
[312553520,1705972247282,-727.15731009,0.00023,2]
[312553521,1705972265082,10098.0,0.0001979,2]
[312553522,1705972281211,200.0,0.000228,8]
[312553523,1705972283322,500.0,0.000229,8]
[312553524,1705972520082,1000.0,0.00033,30]
[312553525,1705972565097,1011.93885761,0.0001979,2]
[312553526,1705972973362,285.61791287,0.00021,2]
[312553527,1705973013268,1629.74974491,0.00021,2]
[312553528,1705973419306,183.19676302,0.00021,2]
[312553536,1705973431506,-327.47231693,0.00021335,2]
[312553537,1705973431515,-300.0,0.00021335,2]
[312553538,1705973431524,-39.94886732,0.00021336,2]
[312553539,1705973431553,-960.05113268,0.00021336,2]
[312553540,1705973431562,-2500.0,0.00021336,2]
[312553541,1705973431571,-6281.6931,0.00021336,2]
[312553542,1705973431579,-471.54764388,0.00021337,2]
[312553543,1705973431588,-300.7,0.00021395,2]
[312553544,1705973431598,-285.22030387,0.00021434,2]
[312553545,1705973431606,-174.02161254,0.00021434,2]
[312553546,1705973431616,-1005.70400779,0.00021435,2]
[312553547,1705973431624,-11543.15445708,0.00021436,2]
[312553548,1705973431640,-169993.91699512,0.00021436,2]
[312553549,1705973431659,-19300.21782847,0.00021436,2]
[312553550,1705973431691,-3177.69429996,0.00021436,2]
[312553551,1705973431729,-528.87484806,0.00021436,2]
[312553552,1705973431766,-391.73008624,0.00021436,2]
[312553553,1705973431812,-917.82255189,0.00021436,2]
[312553607,1705973438367,-13997.90129904,0.00021436,2]
[312553665,1705973439979,-11951.90398856,0.00021436,2]
[312553666,1705973440117,-297.06022886,0.00021436,2]
[312553667,1705973440238,-458.59577772,0.00021436,2]
[312553671,1705973440894,-1165.34999995,0.00021436,2]
[312553697,1705973442784,-416.86219279,0.00021436,2]
[312553698,1705973442796,-3185.98868225,0.00021436,2]
[312553699,1705973442808,-9367.88730379,0.00021436,2]
[312553700,1705973442825,-48082.51674877,0.00021436,2]
[312553701,1705973442834,-500.0,0.00021437,2]
[312553702,1705973442843,-3397.7048,0.00021437,2]
[312553703,1705973442852,-5440.1859,0.00021437,2]
[312553704,1705973442862,-1000.0,0.00021437,2]